[Event "*** MasterClass Titled Tuesday Blitz"]
[Site "Chess.com"]
[Date "2017.09.05"]
[Round "4"]
[White "W_Amadeus"]
[Black "TenisMaster"]
[Result "1-0"]
[WhiteElo "2424"]
[BlackElo "2755"]
[TimeControl "180+2"]
[EndTime "13:58:24 PDT"]
[Termination "W_Amadeus won by resignation"]

1. d4 {[%clk 0:03:01.9]} 1... Nf6 {[%clk 0:02:59.2]} 2. c4 {[%clk 0:03:02.8]}
2... e6 {[%clk 0:02:59.8]} 3. Nf3 {[%clk 0:03:03.9]} 3... d5 {[%clk 0:02:59.5]}
4. g3 {[%clk 0:03:04.5]} 4... Bb4+ {[%clk 0:02:58.7]} 5. Bd2 {[%clk 0:03:04.7]}
5... Bd6 {[%clk 0:02:59.6]} 6. Nc3 {[%clk 0:03:04.6]} 6... O-O {[%clk
0:02:57.9]} 7. Bg5 {[%clk 0:02:55.3]} 7... c6 {[%clk 0:02:47.4]} 8. Bg2 {[%clk
0:02:53.8]} 8... Nbd7 {[%clk 0:02:38.5]} 9. e4 {[%clk 0:02:24.3]} 9... dxe4
{[%clk 0:02:32.7]} 10. Nxe4 {[%clk 0:02:24.9]} 10... Bb4+ {[%clk 0:02:33.4]} 11.
Nc3 {[%clk 0:02:05.4]} 11... Qa5 {[%clk 0:01:55.5]} 12. Bd2 {[%clk 0:02:04.9]}
12... Qa6 {[%clk 0:01:44.2]} 13. Qe2 {[%clk 0:02:04.3]} 13... Nb6 {[%clk
0:01:33.5]} 14. b3 {[%clk 0:01:35.9]} 14... Qa5 {[%clk 0:01:33.8]} 15. Rc1
{[%clk 0:01:35]} 15... c5 {[%clk 0:01:25.3]} 16. dxc5 {[%clk 0:01:29.7]} 16...
Qxc5 {[%clk 0:01:25.3]} 17. O-O {[%clk 0:01:28.3]} 17... Bd7 {[%clk 0:01:19.8]}
18. Ne5 {[%clk 0:01:21.1]} 18... Rab8 {[%clk 0:01:10.7]} 19. Bf4 {[%clk
0:01:07.5]} 19... Rbd8 {[%clk 0:00:52.5]} 20. Nd3 {[%clk 0:00:40.4]} 20... Qa5
{[%clk 0:00:49]} 21. Nxb4 {[%clk 0:00:41.4]} 21... Qxb4 {[%clk 0:00:50.1]} 22.
Bxb7 {[%clk 0:00:42.3]} 22... Nxc4 {[%clk 0:00:45.7]} 23. Bg2 {[%clk 0:00:43.2]}
23... Nb6 {[%clk 0:00:45.9]} 24. Rfd1 {[%clk 0:00:41.3]} 24... Bc8 {[%clk
0:00:43.7]} 25. Rxd8 {[%clk 0:00:32]} 25... Rxd8 {[%clk 0:00:45.6]} 26. Rd1
{[%clk 0:00:32]} 26... Rxd1+ {[%clk 0:00:33.9]} 27. Qxd1 {[%clk 0:00:32.8]}
27... Bd7 {[%clk 0:00:33.7]} 28. Qd2 {[%clk 0:00:30.3]} 28... h6 {[%clk
0:00:18.5]} 29. Ne4 {[%clk 0:00:23.5]} 29... Qxd2 {[%clk 0:00:19.2]} 30. Nxf6+
{[%clk 0:00:24.6]} 30... gxf6 {[%clk 0:00:19.5]} 31. Bxd2 {[%clk 0:00:26.5]}
31... Kg7 {[%clk 0:00:20.4]} 32. Be3 {[%clk 0:00:27.6]} 32... Bb5 {[%clk
0:00:19.5]} 33. a4 {[%clk 0:00:25.8]} 33... Bd3 {[%clk 0:00:19.6]} 34. a5 {[%clk
0:00:22.1]} 34... Nc8 {[%clk 0:00:19.9]} 35. Bc5 {[%clk 0:00:21.7]} 35... Ba6
{[%clk 0:00:18.5]} 36. b4 {[%clk 0:00:22.4]} 36... Bb5 {[%clk 0:00:15.5]} 37.
Bb7 {[%clk 0:00:21.2]} 37... Bd7 {[%clk 0:00:16.1]} 38. b5 {[%clk 0:00:21.9]}
38... e5 {[%clk 0:00:11.7]} 39. b6 {[%clk 0:00:19.3]} 39... axb6 {[%clk
0:00:12.2]} 40. axb6 {[%clk 0:00:21.2]} 40... f5 {[%clk 0:00:11.9]} 41. Bg2
{[%clk 0:00:20.8]} 41... Nxb6 {[%clk 0:00:11.8]} 42. Bxb6 {[%clk 0:00:22.7]}
42... Be6 {[%clk 0:00:12.1]} 43. Ba5 {[%clk 0:00:23.6]} 43... f6 {[%clk
0:00:13.4]} 44. Bc3 {[%clk 0:00:24.7]} 44... Kg6 {[%clk 0:00:14.3]} 45. f4
{[%clk 0:00:25.1]} 45... exf4 {[%clk 0:00:11.6]} 46. gxf4 {[%clk 0:00:27]} 46...
Bc4 {[%clk 0:00:12.7]} 47. Kf2 {[%clk 0:00:28.1]} 47... Bd3 {[%clk 0:00:13.9]}
48. Bf3 {[%clk 0:00:29.2]} 48... Bc2 {[%clk 0:00:13.7]} 49. Ke3 {[%clk
0:00:30.4]} 49... Bb1 {[%clk 0:00:14.6]} 50. Kd4 {[%clk 0:00:31.6]} 50... Bc2
{[%clk 0:00:15.3]} 51. Kc5 {[%clk 0:00:32.6]} 51... Bd3 {[%clk 0:00:14.4]} 52.
Kd6 {[%clk 0:00:33.7]} 52... Be4 {[%clk 0:00:15.8]} 53. Be2 {[%clk 0:00:34.2]}
53... Kf7 {[%clk 0:00:16.5]} 54. Bh5+ {[%clk 0:00:34.3]} 54... Kg7 {[%clk
0:00:15.5]} 55. Ke7 {[%clk 0:00:35.4]} 1-0

[Event "*** MasterClass Titled Tuesday Blitz"]
[Site "Chess.com"]
[Date "2017.09.05"]
[Round "4"]
[White "ALeks_Ivlev"]
[Black "wonderfultime"]
[Result "1-0"]
[WhiteElo "2442"]
[BlackElo "2655"]
[TimeControl "180+2"]
[EndTime "13:58:30 PDT"]
[Termination "ALeks_Ivlev won on time"]

1. d4 {[%clk 0:03:01.2]} 1... d5 {[%clk 0:03:00.8]} 2. c4 {[%clk 0:03:02.6]}
2... c6 {[%clk 0:02:59.2]} 3. Nf3 {[%clk 0:03:02.5]} 3... Nf6 {[%clk 0:03:00.4]}
4. e3 {[%clk 0:03:03.7]} 4... Bf5 {[%clk 0:02:59.8]} 5. Nc3 {[%clk 0:03:03.7]}
5... e6 {[%clk 0:03:01.3]} 6. Nh4 {[%clk 0:03:04.4]} 6... Be4 {[%clk 0:03:02.2]}
7. f3 {[%clk 0:03:05.5]} 7... Bg6 {[%clk 0:03:03.5]} 8. Nxg6 {[%clk 0:03:07]}
8... hxg6 {[%clk 0:03:05.4]} 9. Bd2 {[%clk 0:03:07.2]} 9... Bd6 {[%clk
0:03:05.4]} 10. Qb3 {[%clk 0:03:02.6]} 10... Qe7 {[%clk 0:02:35.5]} 11. O-O-O
{[%clk 0:02:56]} 11... dxc4 {[%clk 0:02:06]} 12. Bxc4 {[%clk 0:02:55]} 12... O-O
{[%clk 0:02:03]} 13. h4 {[%clk 0:02:49.7]} 13... b5 {[%clk 0:01:59.4]} 14. Bd3
{[%clk 0:02:49.7]} 14... a5 {[%clk 0:02:00.8]} 15. Ne4 {[%clk 0:02:41.8]} 15...
Nbd7 {[%clk 0:01:36.6]} 16. h5 {[%clk 0:02:13.8]} 16... Nxe4 {[%clk 0:01:11.8]}
17. Bxe4 {[%clk 0:02:04]} 17... g5 {[%clk 0:01:12.7]} 18. Kb1 {[%clk 0:01:57.4]}
18... Rfc8 {[%clk 0:01:10.3]} 19. Rc1 {[%clk 0:01:35.3]} 19... Ra6 {[%clk
0:01:11.2]} 20. Rc2 {[%clk 0:01:23.8]} 20... a4 {[%clk 0:01:06.7]} 21. Qd3
{[%clk 0:01:24.4]} 21... f5 {[%clk 0:01:04.3]} 22. Bxf5 {[%clk 0:01:20.9]} 22...
exf5 {[%clk 0:01:06.2]} 23. Qxf5 {[%clk 0:01:22.1]} 23... Rf8 {[%clk 0:01:00.2]}
24. Qg4 {[%clk 0:01:23]} 24... Kh7 {[%clk 0:00:46.4]} 25. e4 {[%clk 0:01:21]}
25... Bf4 {[%clk 0:00:47.2]} 26. h6 {[%clk 0:01:04.1]} 26... g6 {[%clk
0:00:47.4]} 27. Bb4 {[%clk 0:01:01.9]} 27... c5 {[%clk 0:00:27.7]} 28. dxc5
{[%clk 0:00:49.1]} 28... Ne5 {[%clk 0:00:18]} 29. Qh3 {[%clk 0:00:50.1]} 29...
Nc6 {[%clk 0:00:08.5]} 30. Rd1 {[%clk 0:00:48.2]} 30... Ra7 {[%clk 0:00:09.4]}
31. Bd2 {[%clk 0:00:42.5]} 31... b4 {[%clk 0:00:07.4]} 32. Bxf4 {[%clk
0:00:39.4]} 32... gxf4 {[%clk 0:00:09.3]} 33. Rcd2 {[%clk 0:00:39.9]} 33... Rf7
{[%clk 0:00:09.1]} 34. Rd6 {[%clk 0:00:39.6]} 34... Ne5 {[%clk 0:00:05]} 35. c6
{[%clk 0:00:37]} 35... b3 {[%clk 0:00:05.1]} 36. a3 {[%clk 0:00:23.7]} 36... Nc4
{[%clk 0:00:06.4]} 37. Rd7 {[%clk 0:00:22.2]} 37... Nxa3+ {[%clk 0:00:06.7]} 38.
bxa3 {[%clk 0:00:14.5]} 38... Qxa3 {[%clk 0:00:08.6]} 39. R1d2 {[%clk
0:00:14.4]} 39... Qc5 {[%clk 0:00:06.8]} 40. Rxf7+ {[%clk 0:00:14.6]} 40... Rxf7
{[%clk 0:00:07.6]} 41. Qd7 {[%clk 0:00:14.4]} 41... Rxd7 {[%clk 0:00:02.6]} 42.
cxd7 {[%clk 0:00:15.6]} 42... Qg1+ {[%clk 0:00:04.5]} 43. Kb2 {[%clk 0:00:16.4]}
43... a3+ {[%clk 0:00:06.1]} 44. Kxb3 {[%clk 0:00:15.9]} 44... Qb6+ {[%clk
0:00:07]} 45. Ka2 {[%clk 0:00:16.2]} 1-0

[Event "*** MasterClass Titled Tuesday Blitz"]
[Site "Chess.com"]
[Date "2017.09.05"]
[Round "4"]
[White "Frolik67"]
[Black "Tarlev_Konstantin"]
[Result "1-0"]
[WhiteElo "2522"]
[BlackElo "2599"]
[TimeControl "180+2"]
[EndTime "13:58:36 PDT"]
[Termination "Frolik67 won by resignation"]

1. e4 {[%clk 0:03:02]} 1... c5 {[%clk 0:03:00]} 2. Nf3 {[%clk 0:03:01.2]} 2...
e6 {[%clk 0:03:01.5]} 3. d3 {[%clk 0:03:01.8]} 3... d5 {[%clk 0:03:00.5]} 4.
Nbd2 {[%clk 0:03:02.5]} 4... Bd6 {[%clk 0:03:01.1]} 5. g3 {[%clk 0:03:03.5]}
5... Ne7 {[%clk 0:03:02]} 6. Bg2 {[%clk 0:03:04.7]} 6... O-O {[%clk 0:03:03.5]}
7. O-O {[%clk 0:03:05.8]} 7... Nbc6 {[%clk 0:03:04.3]} 8. Re1 {[%clk 0:03:06.5]}
8... Bc7 {[%clk 0:02:56.7]} 9. h4 {[%clk 0:03:06.9]} 9... e5 {[%clk 0:02:53.5]}
10. exd5 {[%clk 0:03:07.4]} 10... Nxd5 {[%clk 0:02:54.5]} 11. Nc4 {[%clk
0:03:07.5]} 11... Re8 {[%clk 0:02:55]} 12. Ng5 {[%clk 0:03:04.9]} 12... Nf6
{[%clk 0:02:36.7]} 13. Ne4 {[%clk 0:03:03.7]} 13... Nxe4 {[%clk 0:02:33]} 14.
Bxe4 {[%clk 0:03:05.7]} 14... Be6 {[%clk 0:02:21.9]} 15. Bxc6 {[%clk 0:02:57.1]}
15... bxc6 {[%clk 0:02:22.4]} 16. Nxe5 {[%clk 0:02:57.8]} 16... Bd5 {[%clk
0:02:04]} 17. Bf4 {[%clk 0:02:56.9]} 17... f6 {[%clk 0:01:43.2]} 18. Nc4 {[%clk
0:02:42.5]} 18... Bxf4 {[%clk 0:01:43.5]} 19. gxf4 {[%clk 0:02:39.8]} 19... Qd7
{[%clk 0:01:31.3]} 20. Ne3 {[%clk 0:02:38.1]} 20... Qh3 {[%clk 0:01:06.7]} 21.
Nxd5 {[%clk 0:02:34.4]} 21... Rxe1+ {[%clk 0:01:07.3]} 22. Qxe1 {[%clk
0:02:36.3]} 22... Qg4+ {[%clk 0:01:08.1]} 23. Kf1 {[%clk 0:02:35.3]} 23... cxd5
{[%clk 0:01:07.9]} 24. Qe3 {[%clk 0:02:32.8]} 24... Qxh4 {[%clk 0:01:03.4]} 25.
Re1 {[%clk 0:02:29.3]} 25... Qh5 {[%clk 0:00:58.6]} 26. Kg1 {[%clk 0:01:51.2]}
26... Qg4+ {[%clk 0:00:44.9]} 27. Kf1 {[%clk 0:01:51.8]} 27... Qh5 {[%clk
0:00:45.7]} 28. Kg1 {[%clk 0:01:52.8]} 28... Qg4+ {[%clk 0:00:42.1]} 29. Kf1
{[%clk 0:01:50.3]} 29... Qh5 {[%clk 0:00:43.5]} 30. Kg1 {[%clk 0:01:32.9]} 30...
Kh8 {[%clk 0:00:43.8]} 31. Qxc5 {[%clk 0:01:28.5]} 31... Qg4+ {[%clk 0:00:35.6]}
32. Kf1 {[%clk 0:01:29.6]} 32... Qh3+ {[%clk 0:00:27.5]} 33. Ke2 {[%clk
0:01:27.7]} 33... Rc8 {[%clk 0:00:28.5]} 34. Kd2 {[%clk 0:01:22]} 34... h6
{[%clk 0:00:23.3]} 35. Qxa7 {[%clk 0:01:19.4]} 35... Qg2 {[%clk 0:00:14.1]} 36.
Qe3 {[%clk 0:01:18.1]} 36... d4 {[%clk 0:00:14.1]} 37. Qxd4 {[%clk 0:01:16.7]}
37... Qb7 {[%clk 0:00:15.6]} 38. c4 {[%clk 0:01:12.4]} 38... Qb4+ {[%clk
0:00:15.9]} 39. Qc3 {[%clk 0:01:13.1]} 39... Qd6 {[%clk 0:00:15.8]} 40. Re4
{[%clk 0:01:13.5]} 40... Ra8 {[%clk 0:00:15.1]} 41. a3 {[%clk 0:01:14.2]} 41...
Rb8 {[%clk 0:00:15.5]} 42. b4 {[%clk 0:01:14.8]} 42... Qc6 {[%clk 0:00:16.1]}
43. b5 {[%clk 0:01:12.5]} 43... Qc5 {[%clk 0:00:17.1]} 44. Ke2 {[%clk
0:01:11.8]} 44... h5 {[%clk 0:00:16.1]} 45. a4 {[%clk 0:01:10.3]} 45... h4
{[%clk 0:00:15.4]} 46. Qd4 {[%clk 0:01:09.8]} 46... Qh5+ {[%clk 0:00:15.8]} 47.
Kd2 {[%clk 0:01:09.8]} 47... h3 {[%clk 0:00:17]} 48. Qd6 {[%clk 0:00:59.5]}
48... Rg8 {[%clk 0:00:10.3]} 49. Re1 {[%clk 0:00:48.4]} 49... Qf3 {[%clk
0:00:09.3]} 50. Qd5 {[%clk 0:00:46.3]} 50... Qxf2+ {[%clk 0:00:09.2]} 51. Re2
{[%clk 0:00:46.3]} 51... Qxf4+ {[%clk 0:00:10.2]} 52. Kc2 {[%clk 0:00:47.2]}
52... Qh4 {[%clk 0:00:10.7]} 53. Rh2 {[%clk 0:00:45.2]} 53... Re8 {[%clk
0:00:09.9]} 54. Qf3 {[%clk 0:00:44.2]} 54... Kg8 {[%clk 0:00:08.6]} 55. Rxh3
{[%clk 0:00:43.1]} 55... Qd4 {[%clk 0:00:10.1]} 56. Rh8+ {[%clk 0:00:38.3]}
56... Kxh8 {[%clk 0:00:10.3]} 57. Qh5+ {[%clk 0:00:39.8]} 57... Kg8 {[%clk
0:00:11.3]} 58. Qxe8+ {[%clk 0:00:41.2]} 58... Kh7 {[%clk 0:00:13]} 59. Qe4+
{[%clk 0:00:42.7]} 1-0

[Event "*** MasterClass Titled Tuesday Blitz"]
[Site "Chess.com"]
[Date "2017.09.05"]
[Round "4"]
[White "Blitzking4444"]
[Black "aa175"]
[Result "1-0"]
[WhiteElo "2088"]
[BlackElo "1847"]
[TimeControl "180+2"]
[EndTime "13:58:45 PDT"]
[Termination "Blitzking4444 won by resignation"]

1. e4 {[%clk 0:03:01.9]} 1... e5 {[%clk 0:02:59.3]} 2. Nf3 {[%clk 0:03:01.2]}
2... Nc6 {[%clk 0:02:57.3]} 3. Bb5 {[%clk 0:03:01.7]} 3... Nf6 {[%clk
0:02:52.5]} 4. d3 {[%clk 0:02:58.7]} 4... Bc5 {[%clk 0:02:52.3]} 5. Bxc6 {[%clk
0:02:59.5]} 5... dxc6 {[%clk 0:02:54.9]} 6. Qe2 {[%clk 0:03:00.6]} 6... Bg4
{[%clk 0:02:50.3]} 7. Nbd2 {[%clk 0:02:59.2]} 7... O-O {[%clk 0:02:40.7]} 8. h3
{[%clk 0:02:58.2]} 8... Bxf3 {[%clk 0:02:38]} 9. Qxf3 {[%clk 0:02:50.8]} 9... a6
{[%clk 0:02:33.4]} 10. Nf1 {[%clk 0:02:45.2]} 10... Qe7 {[%clk 0:02:20.8]} 11.
Bg5 {[%clk 0:02:42.6]} 11... h6 {[%clk 0:02:12.8]} 12. Bxf6 {[%clk 0:02:42.8]}
12... Qxf6 {[%clk 0:02:12]} 13. Qxf6 {[%clk 0:02:43.6]} 13... gxf6 {[%clk
0:02:13.9]} 14. g4 {[%clk 0:02:12.3]} 14... Kg7 {[%clk 0:02:11.1]} 15. Ng3
{[%clk 0:02:12.5]} 15... Kg6 {[%clk 0:02:02]} 16. Ke2 {[%clk 0:02:08.2]} 16...
b5 {[%clk 0:01:58.2]} 17. Raf1 {[%clk 0:02:04.4]} 17... Bd6 {[%clk 0:01:56.7]}
18. h4 {[%clk 0:00:55]} 18... c5 {[%clk 0:01:43.9]} 19. Ra1 {[%clk 0:00:43.5]}
19... b4 {[%clk 0:01:42]} 20. a3 {[%clk 0:00:39.5]} 20... a5 {[%clk 0:01:43.9]}
21. axb4 {[%clk 0:00:32.5]} 21... axb4 {[%clk 0:01:44.7]} 22. f3 {[%clk
0:00:25.2]} 22... Rfb8 {[%clk 0:01:33]} 23. Rhb1 {[%clk 0:00:16.1]} 23... Rd8
{[%clk 0:01:06.6]} 24. Ke3 {[%clk 0:00:08.7]} 24... Rdb8 {[%clk 0:01:05.7]} 25.
Kd2 {[%clk 0:00:09.7]} 25... Rd8 {[%clk 0:01:04.8]} 26. Kc1 {[%clk 0:00:10.4]}
26... Bf8 {[%clk 0:01:02.1]} 27. Kd2 {[%clk 0:00:08.3]} 27... Kh7 {[%clk
0:01:02.1]} 28. Ke3 {[%clk 0:00:08.9]} 28... Bd6 {[%clk 0:01:01.7]} 29. c4
{[%clk 0:00:05.8]} 29... Rdb8 {[%clk 0:00:56]} 30. b3 {[%clk 0:00:05.7]} 30...
Kg8 {[%clk 0:00:43.9]} 31. Nh5 {[%clk 0:00:06.2]} 31... Be7 {[%clk 0:00:38.8]}
32. f4 {[%clk 0:00:07.2]} 32... Ra3 {[%clk 0:00:36.3]} 33. Rxa3 {[%clk
0:00:04.5]} 33... bxa3 {[%clk 0:00:37.3]} 34. Ra1 {[%clk 0:00:05.5]} 34... Rxb3
{[%clk 0:00:37.5]} 35. f5 {[%clk 0:00:04.7]} 35... Kf8 {[%clk 0:00:36]} 36. Ra2
{[%clk 0:00:06]} 36... Ke8 {[%clk 0:00:36]} 37. Ng3 {[%clk 0:00:06.4]} 37... Kd8
{[%clk 0:00:35.2]} 38. h5 {[%clk 0:00:07.9]} 38... Kc8 {[%clk 0:00:34.2]} 39.
Nf1 {[%clk 0:00:07.9]} 39... Kb7 {[%clk 0:00:10.6]} 40. Nd2 {[%clk 0:00:08.7]}
40... Rc3 {[%clk 0:00:10.7]} 41. Nb1 {[%clk 0:00:07.4]} 41... Rc1 {[%clk
0:00:07.9]} 42. Nxa3 {[%clk 0:00:07.7]} 42... c6 {[%clk 0:00:05.1]} 43. Nc2
{[%clk 0:00:06.8]} 43... Rg1 {[%clk 0:00:05]} 44. Kf3 {[%clk 0:00:06.9]} 44...
Rf1+ {[%clk 0:00:05.4]} 45. Kg2 {[%clk 0:00:05.6]} 45... Rd1 {[%clk 0:00:05.7]}
46. Ne3 {[%clk 0:00:06.3]} 46... Re1 {[%clk 0:00:04.4]} 47. Kf2 {[%clk
0:00:07.2]} 47... Rh1 {[%clk 0:00:02.9]} 48. Kf3 {[%clk 0:00:06.4]} 48... Rh2
{[%clk 0:00:03.9]} 49. Rxh2 {[%clk 0:00:06.5]} 1-0

[Event "*** MasterClass Titled Tuesday Blitz"]
[Site "Chess.com"]
[Date "2017.09.05"]
[Round "4"]
[White "Noukii"]
[Black "K_A_S_T_O_R"]
[Result "0-1"]
[WhiteElo "2661"]
[BlackElo "2617"]
[TimeControl "180+2"]
[EndTime "13:58:47 PDT"]
[Termination "K_A_S_T_O_R won by resignation"]

1. d4 {[%clk 0:03:01.9]} 1... Nf6 {[%clk 0:03:00.1]} 2. c4 {[%clk 0:03:02.1]}
2... e6 {[%clk 0:03:00.5]} 3. Nf3 {[%clk 0:03:02.8]} 3... c5 {[%clk 0:02:58]} 4.
d5 {[%clk 0:03:02.8]} 4... d6 {[%clk 0:02:59.1]} 5. Nc3 {[%clk 0:03:03.6]} 5...
exd5 {[%clk 0:03:00.8]} 6. cxd5 {[%clk 0:03:05.5]} 6... g6 {[%clk 0:03:02.4]} 7.
Bf4 {[%clk 0:03:04.8]} 7... a6 {[%clk 0:03:03.4]} 8. a4 {[%clk 0:03:03.8]} 8...
Bg7 {[%clk 0:03:01.6]} 9. e4 {[%clk 0:03:05.3]} 9... Bg4 {[%clk 0:03:01.7]} 10.
Be2 {[%clk 0:03:06.4]} 10... Bxf3 {[%clk 0:03:02.5]} 11. Bxf3 {[%clk 0:03:08]}
11... O-O {[%clk 0:03:04.1]} 12. O-O {[%clk 0:03:09.3]} 12... Qe7 {[%clk
0:03:04.8]} 13. e5 {[%clk 0:02:41.7]} 13... dxe5 {[%clk 0:03:04.8]} 14. Re1
{[%clk 0:02:43.4]} 14... Nbd7 {[%clk 0:03:05.6]} 15. d6 {[%clk 0:02:44.9]} 15...
Qe6 {[%clk 0:03:06.1]} 16. Bxb7 {[%clk 0:02:44.9]} 16... Ra7 {[%clk 0:03:07.4]}
17. Bf3 {[%clk 0:02:42.7]} 17... Rb8 {[%clk 0:03:07.2]} 18. Qd2 {[%clk
0:02:26.6]} 18... Bf8 {[%clk 0:02:41.3]} 19. Rad1 {[%clk 0:02:08.1]} 19... Rb6
{[%clk 0:02:39.2]} 20. Bg3 {[%clk 0:01:39]} 20... Rxd6 {[%clk 0:02:37.6]} 21.
Qe2 {[%clk 0:01:40.2]} 21... Rd4 {[%clk 0:02:32.5]} 22. a5 {[%clk 0:01:32.3]}
22... Rc7 {[%clk 0:02:31.6]} 23. h3 {[%clk 0:01:20.3]} 23... h5 {[%clk
0:02:28.9]} 24. Ne4 {[%clk 0:01:11.1]} 24... Nxe4 {[%clk 0:02:23.1]} 25. Bxe4
{[%clk 0:01:12]} 25... Nf6 {[%clk 0:02:18.5]} 26. Bd3 {[%clk 0:01:11.1]} 26...
c4 {[%clk 0:02:05.4]} 27. Qxe5 {[%clk 0:01:01.8]} 27... Rcd7 {[%clk 0:01:59.6]}
28. Qxe6 {[%clk 0:00:58.4]} 28... fxe6 {[%clk 0:02:00]} 29. Bc2 {[%clk
0:00:59.3]} 29... Kf7 {[%clk 0:01:58.4]} 30. Rxd4 {[%clk 0:00:48.2]} 30... Rxd4
{[%clk 0:01:59.1]} 31. Re2 {[%clk 0:00:47]} 31... Bb4 {[%clk 0:01:58.2]} 32. Be5
{[%clk 0:00:45.8]} 32... Rd5 {[%clk 0:01:51.3]} 33. f4 {[%clk 0:00:32.2]} 33...
Bxa5 {[%clk 0:01:48.3]} 34. Kf2 {[%clk 0:00:33.1]} 34... Bb6+ {[%clk 0:01:49.1]}
35. Kf3 {[%clk 0:00:34.5]} 35... Bd4 {[%clk 0:01:50.5]} 36. g4 {[%clk
0:00:31.2]} 36... hxg4+ {[%clk 0:01:48.6]} 37. hxg4 {[%clk 0:00:33.1]} 37...
Bxe5 {[%clk 0:01:49.8]} 38. fxe5 {[%clk 0:00:35]} 38... Nd7 {[%clk 0:01:51.2]}
39. Kf4 {[%clk 0:00:36.5]} 39... g5+ {[%clk 0:01:48.7]} 40. Kxg5 {[%clk
0:00:37.8]} 40... Nxe5 {[%clk 0:01:50.3]} 41. Kf4 {[%clk 0:00:34.1]} 41... Nd3+
{[%clk 0:01:51.4]} 42. Kf3 {[%clk 0:00:26.1]} 42... Nxb2 {[%clk 0:01:49.8]} 43.
Be4 {[%clk 0:00:15.7]} 43... Rb5 {[%clk 0:01:50.8]} 44. Rd2 {[%clk 0:00:15.3]}
44... Kf6 {[%clk 0:01:51.2]} 45. Kf4 {[%clk 0:00:15.6]} 45... e5+ {[%clk
0:01:50.7]} 46. Kg3 {[%clk 0:00:15.2]} 46... Rb3+ {[%clk 0:01:52]} 47. Kh4
{[%clk 0:00:16.2]} 47... Nd3 {[%clk 0:01:53.6]} 48. g5+ {[%clk 0:00:17]} 48...
Ke7 {[%clk 0:01:53.1]} 49. g6 {[%clk 0:00:18.6]} 49... Kf6 {[%clk 0:01:53.8]}
50. Rd1 {[%clk 0:00:17.5]} 50... Nf2 {[%clk 0:01:44.9]} 51. Rd6+ {[%clk
0:00:18.5]} 51... Ke7 {[%clk 0:01:46.3]} 52. Rxa6 {[%clk 0:00:16.8]} 52... Rh3+
{[%clk 0:01:45.3]} 53. Kg5 {[%clk 0:00:17.8]} 53... Nxe4+ {[%clk 0:01:46.8]} 54.
Kf5 {[%clk 0:00:19.7]} 54... Nd6+ {[%clk 0:01:47.8]} 55. Kxe5 {[%clk 0:00:20.9]}
55... Rh5+ {[%clk 0:01:48.8]} 56. Kd4 {[%clk 0:00:22.4]} 56... Rg5 {[%clk
0:01:50]} 57. g7 {[%clk 0:00:21.9]} 57... Ke6 {[%clk 0:01:51.2]} 58. Ra7 {[%clk
0:00:22.4]} 58... Rd5+ {[%clk 0:01:50.3]} 59. Ke3 {[%clk 0:00:23.6]} 59... Rg5
{[%clk 0:01:50.1]} 60. Kd4 {[%clk 0:00:24.8]} 60... Rg4+ {[%clk 0:01:48.3]} 61.
Ke3 {[%clk 0:00:24.9]} 61... Nf5+ {[%clk 0:01:45.9]} 62. Kf3 {[%clk 0:00:25.7]}
62... Rxg7 {[%clk 0:01:46.8]} 63. Ra8 {[%clk 0:00:18]} 63... Nd6 {[%clk
0:01:46.4]} 64. Ke3 {[%clk 0:00:18.8]} 64... Rg4 {[%clk 0:01:45.6]} 65. Kd2
{[%clk 0:00:19.3]} 65... Rg3 {[%clk 0:01:46.4]} 66. Kc2 {[%clk 0:00:20.3]} 66...
Re3 {[%clk 0:01:46.4]} 67. Ra5 {[%clk 0:00:20.2]} 67... Nf5 {[%clk 0:01:46]} 68.
Kd2 {[%clk 0:00:20.1]} 68... Rd3+ {[%clk 0:01:46.5]} 69. Kc1 {[%clk 0:00:22]}
69... Nd4 {[%clk 0:01:47.8]} 70. Ra8 {[%clk 0:00:23.2]} 70... c3 {[%clk
0:01:47.4]} 71. Rc8 {[%clk 0:00:21.6]} 71... c2 {[%clk 0:01:47.5]} 72. Kb2
{[%clk 0:00:21]} 72... Rd1 {[%clk 0:01:46.4]} 73. Re8+ {[%clk 0:00:17.7]} 73...
Kd7 {[%clk 0:01:46.6]} 0-1